[Event "Turkish Youth Championship 2024"]
[Site "Samsun"]
[Date "2024.05.20"]
[Round "4"]
[White "Zeyrek, Ayaz"]
[Black "Aygin, Kerem"]
[Result "1-0"]
[ECO "A80"]
[WhiteElo "1750"]
[BlackElo "1522"]
[Annotator "NA"]
[PlyCount "55"]
[EventDate "2024.05.18"]
[EventType "swiss"]
[EventCountry "TUR"]
[SourceTitle "playchess.com"]
[Source "ChessBase"]
[SourceQuality "1"]
[TimeControl "5400+30"]

1. d4 {[%emt 0:01:00]} f5 {[%emt 0:01:00]} 2. Nf3 {[%emt 0:00:30]} Nf6 {[%emt 0:00:00]} 3. Bf4 {[%emt 0:00:00]} e6 {[%emt 0:00:00]} 4. e3 {[%emt 0:00:00]} Be7 {[%emt 0:02:30]} 5. Be2 {[%emt 0:00:30]} O-O {[%emt 0:01:30]} 6. h3 {[%emt 0:00:30]} d6 {[%emt 0:19:30]} 7. O-O {[%emt 0:01:30]} a5 {[%emt 0:05:30]} 8. c3 {[%emt 0:02:30]} Ne4 {[%emt 0:09:30]} 9. Nbd2 {[%emt 0:02:30]} Na6 {[%emt 0:07:30]} 10. Nxe4 {[%emt 0:04:30]} fxe4 {[%emt 0:01:30]} 11. Nd2 {[%emt 0:00:30]} d5 {[%emt 0:01:30]} 12. f3 {[%emt 0:01:30]} Rxf4 {[%emt 0:06:30]} 13. exf4 {[%emt 0:00:30]} e3 {[%emt 0:01:30]} 14. Nb1 {[%emt 0:00:30]} Bd6 {[%emt 0:01:30]} 15. Qe1 {[%emt 0:02:30]} Bxf4 {[%emt 0:01:30]} 16. g3 {[%emt 0:00:30]} Qg5 {[%emt 0:14:30]} 17. Kh2 {[%emt 0:00:00]} Bd6 {[%emt 0:07:21]} 18. f4 {[%emt 0:00:00]} Qh6 {[%emt 0:01:03]} 19. Bg4 {[%emt 0:01:30]} e5 {[%emt 0:11:24]} 20. Bxc8 {[%emt 0:00:30]} Rxc8 {[%emt 0:01:09]} 21. fxe5 {[%emt 0:00:30]} Be7 {[%emt 0:00:38]} 22. Na3 {[%emt 0:02:30]} c5 {[%emt 0:01:42]} 23. Qe2 {[%emt 0:01:30]} cxd4 {[%emt 0:01:15]} 24. cxd4 {[%emt 0:00:00]} Bxa3 {[%emt 0:01:59]} 25. bxa3 {[%emt 0:00:00]} Rc4 {[%emt 0:00:00]} 26. Rac1 {[%emt 0:00:30]} Nc7 {[%emt 0:00:49]} 27. Rxc4 {[%emt 0:00:30]} dxc4 {[%emt 0:00:37]} 28. Qxc4+ {[%emt 0:00:30]} 1-0

[Event "Turkish Youth Championship 2024"]
[Site "Samsun"]
[Date "2024.05.20"]
[Round "4"]
[White "Bilgin, Ali Tugrul"]
[Black "Zerey, Demhat"]
[Result "0-1"]
[ECO "C78"]
[WhiteElo "1678"]
[BlackElo "1986"]
[Annotator "NA"]
[PlyCount "84"]
[EventDate "2024.05.18"]
[EventType "swiss"]
[EventCountry "TUR"]
[SourceTitle "playchess.com"]
[Source "ChessBase"]
[SourceQuality "1"]
[TimeControl "5400+30"]

1. e4 {[%emt 0:01:00]} e5 {[%emt 0:01:00]} 2. Nf3 {[%emt 0:00:30]} Nc6 {[%emt 0:00:30]} 3. Bb5 {[%emt 0:00:00]} a6 {[%emt 0:00:30]} 4. Ba4 {[%emt 0:00:00]} Nf6 {[%emt 0:00:30]} 5. O-O {[%emt 0:00:00]} b5 {[%emt 0:00:00]} 6. Bb3 {[%emt 0:00:00]} Bc5 {[%emt 0:00:00]} 7. Nxe5 {[%emt 0:05:30]} Nxe5 {[%emt 0:00:00]} 8. d4 {[%emt 0:00:30]} Bxd4 {[%emt 0:00:00]} 9. Qxd4 {[%emt 0:00:30]} d6 {[%emt 0:00:00]} 10. f4 {[%emt 0:08:30]} Ng6 {[%emt 0:13:00]} 11. Bd5 {[%emt 0:07:30]} Nxd5 {[%emt 0:05:30]} 12. exd5 {[%emt 0:00:30]} Qf6 {[%emt 0:04:30]} 13. Qxf6 {[%emt 0:02:30]} gxf6 {[%emt 0:00:30]} 14. b3 {[%emt 0:01:30]} Bf5 {[%emt 0:04:30]} 15. c4 {[%emt 0:00:30]} bxc4 {[%emt 0:01:30]} 16. bxc4 {[%emt 0:00:00]} Kd7 {[%emt 0:06:30]} 17. Nd2 {[%emt 0:03:00]} Rab8 {[%emt 0:00:30]} 18. g3 {[%emt 0:05:30]} Rhe8 {[%emt 0:03:30]} 19. Ba3 {[%emt 0:05:30]} Re3 {[%emt 0:09:30]} 20. Nb3 {[%emt 0:06:30]} Bd3 {[%emt 0:00:30]} 21. Rfc1 {[%emt 0:00:30]} Nxf4 {[%emt 0:10:30]} 22. Rd1 {[%emt 0:07:30]} Nh3+ {[%emt 0:08:30]} 23. Kg2 {[%emt 0:00:30]} Ng5 {[%emt 0:00:30]} 24. Rxd3 {[%emt 0:11:30]} Rxd3 {[%emt 0:00:30]} 25. Rc1 {[%emt 0:01:30]} Re8 {[%emt 0:01:30]} 26. Rc2 {[%emt 0:00:30]} Nf3 {[%emt 0:00:00]} 27. Rf2 {[%emt 0:00:30]} Nd4 {[%emt 0:00:00]} 28. Nxd4 {[%emt 0:01:30]} Rxd4 {[%emt 0:00:30]} 29. Rxf6 {[%emt 0:00:30]} Rxc4 {[%emt 0:00:30]} 30. Rxf7+ {[%emt 0:00:00]} Re7 {[%emt 0:00:00]} 31. Rf2 {[%emt 0:00:00]} Rd4 {[%emt 0:00:00]} 32. Bb2 {[%emt 0:01:30]} Rxd5 {[%emt 0:00:00]} 33. h4 {[%emt 0:00:00]} h5 {[%emt 0:01:00]} 34. Kh3 {[%emt 0:00:00]} c5 {[%emt 0:00:30]} 35. Bc1 {[%emt 0:00:30]} c4 {[%emt 0:00:30]} 36. Bg5 {[%emt 0:00:00]} Rg7 {[%emt 0:00:00]} 37. Rc2 {[%emt 0:02:00]} Rc5 {[%emt 0:00:00]} 38. g4 {[%emt 0:00:00]} hxg4+ {[%emt 0:00:30]} 39. Kxg4 {[%emt 0:00:00]} d5 {[%emt 0:00:00]} 40. Kf5 {[%emt 0:00:30]} d4+ {[%emt 0:00:00]} 41. Ke4 {[%emt 0:01:30]} d3 {[%emt 0:00:30]} 42. Rc3 {[%emt 0:00:30]} Rgxg5 {[%emt 0:01:30]} 0-1

[Event "Turkish Youth Championship 2024"]
[Site "Samsun"]
[Date "2024.05.20"]
[Round "4"]
[White "Ozturk, Ahmet Emir"]
[Black "Buyuk, Ecrin Efsa"]
[Result "1/2-1/2"]
[ECO "D42"]
[WhiteElo "1581"]
[BlackElo "1892"]
[Annotator "NA"]
[PlyCount "91"]
[EventDate "2024.05.18"]
[EventType "swiss"]
[EventCountry "TUR"]
[SourceTitle "playchess.com"]
[Source "ChessBase"]
[SourceQuality "1"]
[TimeControl "5400+30"]

1. e4 {[%emt 0:01:00]} c6 {[%emt 0:03:00]} 2. d4 {[%emt 0:00:30]} d5 {[%emt 0:00:30]} 3. exd5 {[%emt 0:00:00]} cxd5 {[%emt 0:00:00]} 4. c4 {[%emt 0:00:00]} Nf6 {[%emt 0:00:00]} 5. Nc3 {[%emt 0:00:30]} e6 {[%emt 0:00:00]} 6. Nf3 {[%emt 0:00:00]} Be7 {[%emt 0:00:00]} 7. cxd5 {[%emt 0:00:00]} Nxd5 {[%emt 0:04:30]} 8. Bd3 {[%emt 0:05:30]} Nc6 {[%emt 0:01:30]} 9. O-O {[%emt 0:09:30]} O-O {[%emt 0:01:30]} 10. Bb1 {[%emt 0:14:30]} f5 {[%emt 0:11:30]} 11. Nxd5 {[%emt 0:03:30]} Qxd5 {[%emt 0:02:30]} 12. a3 {[%emt 0:01:30]} Rd8 {[%emt 0:07:30]} 13. Ba2 {[%emt 0:01:30]} Qd6 {[%emt 0:00:00]} 14. Qc2 {[%emt 0:02:30]} Kh8 {[%emt 0:05:00]} 15. Bd2 {[%emt 0:01:30]} Bf6 {[%emt 0:06:30]} 16. Bc3 {[%emt 0:03:30]} a5 {[%emt 0:05:30]} 17. Rad1 {[%emt 0:01:30]} Ne7 {[%emt 0:02:30]} 18. Ne5 {[%emt 0:00:30]} Kg8 {[%emt 0:00:00]} 19. Qe2 {[%emt 0:03:30]} b6 {[%emt 0:04:00]} 20. Qf3 {[%emt 0:05:30]} Rb8 {[%emt 0:03:30]} 21. Rfe1 {[%emt 0:01:30]} Nd5 {[%emt 0:06:30]} 22. Bxd5 {[%emt 0:01:30]} exd5 {[%emt 0:01:30]} 23. Qd3 {[%emt 0:04:30]} Be6 {[%emt 0:05:30]} 24. Re2 {[%emt 0:00:30]} Re8 {[%emt 0:03:30]} 25. f4 {[%emt 0:02:30]} Bd8 {[%emt 0:09:57]} 26. Rde1 {[%emt 0:02:30]} b5 {[%emt 0:00:52]} 27. b4 {[%emt 0:01:30]} a4 {[%emt 0:00:03]} 28. Bb2 {[%emt 0:00:30]} Bb6 {[%emt 0:02:05]} 29. Rc1 {[%emt 0:01:30]} Bd7 {[%emt 0:03:06]} 30. Rec2 {[%emt 0:07:30]} Re7 {[%emt 0:01:35]} 31. Re2 {[%emt 0:01:30]} Rbe8 {[%emt 0:00:55]} 32. Rce1 {[%emt 0:03:30]} Bc8 {[%emt 0:00:59]} 33. Ba1 {[%emt 0:01:30]} g6 {[%emt 0:03:40]} 34. Bb2 {[%emt 0:00:30]} Ba6 {[%emt 0:01:09]} 35. Rc2 {[%emt 0:02:09]} Rc7 {[%emt 0:02:32]} 36. Rec1 {[%emt 0:00:49]} Rec8 {[%emt 0:00:46]} 37. Rxc7 {[%emt 0:01:19]} Rxc7 {[%emt 0:00:15]} 38. Rxc7 {[%emt 0:00:53]} Qxc7 {[%emt 0:00:01]} 39. Qc3 {[%emt 0:00:19]} Qa7 {[%emt 0:00:38]} 40. Kf2 {[%emt 0:01:44]} Kg7 {[%emt 0:01:09]} 41. Nf3 {[%emt 0:02:54]} Qd7 {[%emt 0:01:11]} 42. Qe3 {[%emt 0:00:59]} Bb7 {[%emt 0:01:33]} 43. Qe5+ {[%emt 0:01:21]} Kg8 {[%emt 0:00:11]} 44. Qe3 {[%emt 0:00:45]} Bc7 {[%emt 0:01:56]} 45. Ng5 {[%emt 0:00:55]} Bc8 {[%emt 0:01:10]} 46. g3 {[%emt 0:01:25]} 1/2-1/2

[Event "Turkish Youth Championship 2024"]
[Site "Samsun"]
[Date "2024.05.20"]
[Round "4"]
[White "Engel, Ecrin Tuana"]
[Black "Gulbas, Isa"]
[Result "0-1"]
[ECO "A46"]
[WhiteElo "1575"]
[BlackElo "1813"]
[Annotator "NA"]
[PlyCount "74"]
[EventDate "2024.05.18"]
[EventType "swiss"]
[EventCountry "TUR"]
[SourceTitle "playchess.com"]
[Source "ChessBase"]
[SourceQuality "1"]
[TimeControl "5400+30"]

1. Nf3 {[%emt 0:01:00]} Nf6 {[%emt 0:01:00]} 2. g3 {[%emt 0:00:00]} b5 {[%emt 0:01:30]} 3. Bg2 {[%emt 0:00:00]} Bb7 {[%emt 0:00:00]} 4. O-O {[%emt 0:01:30]} e6 {[%emt 0:01:00]} 5. d4 {[%emt 0:01:30]} Be7 {[%emt 0:00:30]} 6. c3 {[%emt 0:00:00]} c5 {[%emt 0:06:30]} 7. a4 {[%emt 0:09:00]} b4 {[%emt 0:01:30]} 8. cxb4 {[%emt 0:01:30]} cxb4 {[%emt 0:00:30]} 9. Nbd2 {[%emt 0:00:30]} O-O {[%emt 0:02:30]} 10. Re1 {[%emt 0:00:30]} d5 {[%emt 0:03:30]} 11. Ne5 {[%emt 0:01:30]} Nbd7 {[%emt 0:03:30]} 12. Nxd7 {[%emt 0:11:30]} Qxd7 {[%emt 0:01:30]} 13. Nb3 {[%emt 0:02:30]} Rac8 {[%emt 0:10:30]} 14. Be3 {[%emt 0:04:30]} Ba6 {[%emt 0:14:30]} 15. Qd2 {[%emt 0:13:30]} Bc4 {[%emt 0:10:30]} 16. Na5 {[%emt 0:12:30]} Bd6 {[%emt 0:04:30]} 17. Bf4 {[%emt 0:05:30]} Bc7 {[%emt 0:09:30]} 18. Bxc7 {[%emt 0:03:30]} Qxc7 {[%emt 0:00:30]} 19. Nxc4 {[%emt 0:01:30]} Qxc4 {[%emt 0:03:30]} 20. Rec1 {[%emt 0:07:30]} Qb3 {[%emt 0:01:30]} 21. e3 {[%emt 0:00:30]} a5 {[%emt 0:08:37]} 22. Bf3 {[%emt 0:03:50]} Ne4 {[%emt 0:08:07]} 23. Bxe4 {[%emt 0:01:17]} dxe4 {[%emt 0:00:02]} 24. Rxc8 {[%emt 0:08:47]} Rxc8 {[%emt 0:00:02]} 25. Rc1 {[%emt 0:00:00]} Rxc1+ {[%emt 0:04:29]} 26. Qxc1 {[%emt 0:00:00]} h5 {[%emt 0:00:19]} 27. Qc8+ {[%emt 0:04:23]} Kh7 {[%emt 0:00:01]} 28. Qc6 {[%emt 0:01:39]} Qxb2 {[%emt 0:02:35]} 29. Qxe4+ {[%emt 0:00:08]} g6 {[%emt 0:00:19]} 30. Qf4 {[%emt 0:01:25]} Qc1+ {[%emt 0:00:44]} 31. Kg2 {[%emt 0:00:10]} Qc6+ {[%emt 0:01:40]} 32. Kg1 {[%emt 0:02:51]} Qc1+ {[%emt 0:00:30]} 33. Kg2 {[%emt 0:00:30]} Qc6+ {[%emt 0:00:30]} 34. Kg1 {[%emt 0:00:00]} Qb7 {[%emt 0:00:21]} 35. e4 {[%emt 0:01:58]} b3 {[%emt 0:00:26]} 36. Qc1 {[%emt 0:00:28]} b2 {[%emt 0:00:30]} 37. Qb1 {[%emt 0:00:01]} Qb3 {[%emt 0:00:00]} 0-1

[Event "Turkish Youth Championship 2024"]
[Site "Samsun"]
[Date "2024.05.20"]
[Round "4"]
[White "Sozen, Umutcan"]
[Black "Ozmen, Sevket Mert"]
[Result "0-1"]
[ECO "B22"]
[WhiteElo "1520"]
[BlackElo "1749"]
[Annotator "NA"]
[PlyCount "86"]
[EventDate "2024.05.18"]
[EventType "swiss"]
[EventCountry "TUR"]
[SourceTitle "playchess.com"]
[Source "ChessBase"]
[SourceQuality "1"]
[TimeControl "5400+30"]

1. e4 {[%emt 0:01:00]} c5 {[%emt 0:01:00]} 2. c3 {[%emt 0:00:30]} d5 {[%emt 0:00:30]} 3. exd5 {[%emt 0:00:30]} Qxd5 {[%emt 0:00:00]} 4. d4 {[%emt 0:00:00]} Nf6 {[%emt 0:00:00]} 5. Nf3 {[%emt 0:01:00]} Bg4 {[%emt 0:00:00]} 6. Be2 {[%emt 0:00:00]} e6 {[%emt 0:00:00]} 7. Be3 {[%emt 0:01:00]} cxd4 {[%emt 0:00:30]} 8. cxd4 {[%emt 0:01:30]} Nc6 {[%emt 0:00:30]} 9. O-O {[%emt 0:01:30]} Be7 {[%emt 0:00:00]} 10. Nc3 {[%emt 0:00:30]} Qd6 {[%emt 0:00:00]} 11. h3 {[%emt 0:10:30]} Bh5 {[%emt 0:00:00]} 12. Rc1 {[%emt 0:01:30]} O-O {[%emt 0:01:00]} 13. Qd2 {[%emt 0:05:30]} Rfd8 {[%emt 0:05:30]} 14. Rfd1 {[%emt 0:00:30]} Rac8 {[%emt 0:18:30]} 15. g4 {[%emt 0:22:30]} Bg6 {[%emt 0:00:30]} 16. Bd3 {[%emt 0:03:30]} Bxd3 {[%emt 0:07:30]} 17. Qxd3 {[%emt 0:02:30]} Nb4 {[%emt 0:00:30]} 18. Qe2 {[%emt 0:06:30]} Nfd5 {[%emt 0:10:30]} 19. Nxd5 {[%emt 0:19:42]} Nxd5 {[%emt 0:01:30]} 20. Rxc8 {[%emt 0:01:14]} Rxc8 {[%emt 0:00:00]} 21. Rc1 {[%emt 0:02:50]} Rd8 {[%emt 0:02:00]} 22. a3 {[%emt 0:01:57]} h6 {[%emt 0:03:30]} 23. Qd3 {[%emt 0:03:46]} Bf6 {[%emt 0:03:30]} 24. Kg2 {[%emt 0:01:34]} e5 {[%emt 0:05:30]} 25. Qe4 {[%emt 0:04:22]} exd4 {[%emt 0:02:30]} 26. Nxd4 {[%emt 0:01:40]} Nxe3+ {[%emt 0:07:30]} 27. fxe3 {[%emt 0:00:19]} Bh4 {[%emt 0:08:30]} 28. Qf3 {[%emt 0:03:08]} g6 {[%emt 0:00:30]} 29. Ne2 {[%emt 0:02:08]} Qb6 {[%emt 0:09:57]} 30. Rc2 {[%emt 0:00:53]} Rd3 {[%emt 0:03:44]} 31. Nd4 {[%emt 0:01:07]} Qd6 {[%emt 0:01:47]} 32. Ne2 {[%emt 0:00:47]} Qe5 {[%emt 0:00:54]} 33. Rc8+ {[%emt 0:00:46]} Kg7 {[%emt 0:00:05]} 34. Rc3 {[%emt 0:00:40]} Rd2 {[%emt 0:00:01]} 35. a4 {[%emt 0:00:00]} Rxb2 {[%emt 0:00:24]} 36. Rc4 {[%emt 0:00:31]} Ra2 {[%emt 0:02:28]} 37. Rf4 {[%emt 0:00:26]} Qc7 {[%emt 0:01:40]} 38. Qf1 {[%emt 0:00:35]} g5 {[%emt 0:01:38]} 39. Rf5 {[%emt 0:00:32]} Qc4 {[%emt 0:00:17]} 40. Kh1 {[%emt 0:00:29]} Rxe2 {[%emt 0:00:47]} 41. Rxf7+ {[%emt 0:00:58]} Qxf7 {[%emt 0:00:03]} 42. Qxe2 {[%emt 0:00:00]} Qf2 {[%emt 0:00:33]} 43. Qd1 {[%emt 0:00:39]} Qe1+ {[%emt 0:00:04]} 0-1

[Event "Turkish Youth Championship 2024"]
[Site "Samsun"]
[Date "2024.05.21"]
[Round "5"]
[White "Cilek, Bora"]
[Black "Cicek, Bilal Emre"]
[Result "1-0"]
[ECO "E04"]
[WhiteElo "2246"]
[BlackElo "1873"]
[Annotator "RC"]
[PlyCount "81"]
[EventDate "2024.05.18"]
[EventType "swiss"]
[EventCountry "TUR"]
[SourceTitle "playchess.com"]
[Source "ChessBase"]
[SourceQuality "1"]
[TimeControl "5400+30"]

1. d4 {[%emt 0:01:00]} d5 {[%emt 0:01:00]} 2. Nf3 {[%emt 0:00:30]} e6 {[%emt 0:00:30]} 3. g3 {[%emt 0:00:00]} Nf6 {[%emt 0:01:30]} 4. c4 {[%emt 0:00:00]} dxc4 {[%emt 0:01:30]} 5. Bg2 {[%emt 0:00:00]} c5 {[%emt 0:00:00]} 6. O-O {[%emt 0:04:00]} Nc6 {[%emt 0:00:00]} 7. Qa4 {[%emt 0:00:30]} Bd7 {[%emt 0:00:30]} 8. Qxc4 {[%emt 0:00:30]} b5 {[%emt 0:00:00]} 9. Qd3 {[%emt 0:00:30]} c4 {[%emt 0:00:00]} 10. Qd1 {[%emt 0:00:00]} Rc8 {[%emt 0:00:30]} 11. a4 {[%emt 0:06:00]} b4 {[%emt 0:04:30]} 12. Ne5 {[%emt 0:17:30]} Nxe5 {[%emt 0:05:30]} 13. dxe5 {[%emt 0:00:00]} Ng4 {[%emt 0:00:00]} 14. Qd4 {[%emt 0:11:00]} f5 {[%emt 0:00:00]} 15. exf6 {[%emt 0:01:30]} Nxf6 {[%emt 0:00:30]} 16. Qxa7 {[%emt 0:03:30]} Nd5 {[%emt 0:02:30]} 17. Qd4 {[%emt 0:07:30]} Qf6 {[%emt 0:11:30]} 18. Qxf6 {[%emt 0:02:30]} gxf6 {[%emt 0:00:00]} 19. Nd2 {[%emt 0:05:30]} Bd6 {[%emt 0:07:00]} 20. e4 {[%emt 0:04:30]} Nb6 {[%emt 0:02:30]} 21. a5 {[%emt 0:18:59]} Na4 {[%emt 0:00:30]} 22. b3 {[%emt 0:02:36]} cxb3 {[%emt 0:00:30]} 23. Nxb3 {[%emt 0:01:19]} Be5 {[%emt 0:01:30]} 24. Ra2 {[%emt 0:00:10]} Nc3 {[%emt 0:00:30]} 25. Rb2 {[%emt 0:07:01]} Bb5 {[%emt 0:00:30]} 26. Re1 {[%emt 0:00:06]} Na4 {[%emt 0:00:30]} 27. Ra2 {[%emt 0:00:49]} Nc3 {[%emt 0:02:30]} 28. Rb2 {[%emt 0:02:20]} Na4 {[%emt 0:02:30]} 29. Ra2 {[%emt 0:00:21]} Rc3 {[%emt 0:07:30]} 30. Bf1 {[%emt 0:01:26]} Bc6 {[%emt 0:01:30]} 31. Re3 {[%emt 0:02:02]} Ke7 {[%emt 0:00:30]} 32. Bd2 {[%emt 0:01:11]} Rd8 {[%emt 0:03:30]} 33. Bxc3 {[%emt 0:00:26]} Nxc3 {[%emt 0:00:00]} 34. Rd2 {[%emt 0:00:13]} Bxe4 {[%emt 0:03:00]} 35. Rxd8 {[%emt 0:01:26]} Kxd8 {[%emt 0:00:00]} 36. Bg2 {[%emt 0:00:13]} Bd5 {[%emt 0:03:00]} 37. Re4 {[%emt 0:00:11]} Kd7 {[%emt 0:01:30]} 38. a6 {[%emt 0:00:19]} Bb8 {[%emt 0:01:30]} 39. Rh4 {[%emt 0:00:09]} Kc6 {[%emt 0:00:00]} 40. Rxh7 {[%emt 0:00:05]} Kb6 {[%emt 0:01:00]} 41. Rb7+ {[%emt 0:00:05]} 1-0

[Event "Turkish Youth Championship 2024"]
[Site "Samsun"]
[Date "2024.05.21"]
[Round "5"]
[White "Atis, Hasan"]
[Black "Cetindag, Alper"]
[Result "1/2-1/2"]
[ECO "C07"]
[WhiteElo "2014"]
[BlackElo "1839"]
[Annotator "NA RC"]
[PlyCount "99"]
[EventDate "2024.05.18"]
[EventType "swiss"]
[EventCountry "TUR"]
[SourceTitle "playchess.com"]
[Source "ChessBase"]
[SourceQuality "1"]
[TimeControl "5400+30"]

1. e4 {[%emt 0:01:00]} e6 {[%emt 0:01:00]} 2. d4 {[%emt 0:01:30]} d5 {[%emt 0:00:30]} 3. Nd2 {[%emt 0:00:30]} c5 {[%emt 0:00:30]} 4. Ngf3 {[%emt 0:00:30]} cxd4 {[%emt 0:00:30]} 5. exd5 {[%emt 0:00:30]} Qxd5 {[%emt 0:00:00]} 6. Bc4 {[%emt 0:00:00]} Qd7 {[%emt 0:00:00]} 7. O-O {[%emt 0:00:00]} Nc6 {[%emt 0:00:30]} 8. Re1 {[%emt 0:00:30]} Nf6 {[%emt 0:00:00]} 9. Bb5 {[%emt 0:03:30]} a6 {[%emt 0:04:00]} 10. Ba4 {[%emt 0:02:30]} b5 {[%emt 0:01:30]} 11. Bb3 {[%emt 0:00:00]} Bb7 {[%emt 0:07:30]} 12. a4 {[%emt 0:08:00]} Be7 {[%emt 0:06:30]} 13. Ng5 {[%emt 0:24:30]} Na5 {[%emt 0:16:30]} 14. Ba2 {[%emt 0:07:30]} Bd5 {[%emt 0:01:30]} 15. Ndf3 {[%emt 0:15:30]} O-O {[%emt 0:08:30]} 16. Qxd4 {[%emt 0:13:29]} Nc6 {[%emt 0:05:30]} 17. Qh4 {[%emt 0:08:53]} h6 {[%emt 0:00:30]} 18. Bxd5 {[%emt 0:00:12]} Nxd5 {[%emt 0:01:30]} 19. Qh3 {[%emt 0:04:34]} hxg5 {[%emt 0:01:30]} 20. Bxg5 {[%emt 0:00:30]} Rfd8 {[%emt 0:00:00]} 21. Bd2 {[%emt 0:02:27]} Bf6 {[%emt 0:02:00]} 22. Re4 {[%emt 0:00:58]} e5 {[%emt 0:01:30]} 23. Qxd7 {[%emt 0:00:54]} Rxd7 {[%emt 0:00:30]} 24. axb5 {[%emt 0:00:00]} Nd4 {[%emt 0:02:30]} 25. Nxd4 {[%emt 0:00:03]} exd4 {[%emt 0:00:00]} 26. Ra5 {[%emt 0:00:04]} Nb6 {[%emt 0:00:00]} 27. b3 {[%emt 0:00:45]} axb5 {[%emt 0:00:30]} 28. Rxa8+ {[%emt 0:00:00]} Nxa8 {[%emt 0:00:30]} 29. Re8+ {[%emt 0:00:00]} Kh7 {[%emt 0:00:30]} 30. Rxa8 {[%emt 0:00:00]} d3 {[%emt 0:00:30]} 31. Rc8 {[%emt 0:04:50]} dxc2 {[%emt 0:00:30]} 32. Rxc2 {[%emt 0:00:07]} Rd3 {[%emt 0:00:30]} 33. b4 {[%emt 0:00:33]} Bc3 {[%emt 0:00:30]} 34. Rxc3 {[%emt 0:00:30]} Rxd2 {[%emt 0:00:00]} 35. Kf1 {[%emt 0:00:00]} Rb2 {[%emt 0:00:00]} 36. Rh3+ {[%emt 0:00:00]} Kg6 {[%emt 0:00:30]} 37. Rh4 {[%emt 0:00:00]} Kf5 {[%emt 0:00:30]} 38. h3 {[%emt 0:02:19]} Rb1+ {[%emt 0:01:30]} 39. Ke2 {[%emt 0:00:01]} Rb2+ {[%emt 0:00:00]} 40. Ke3 {[%emt 0:01:22]} Rb3+ {[%emt 0:00:00]} 41. Kd2 {[%emt 0:01:34]} Rb2+ {[%emt 0:00:30]} 42. Kd3 {[%emt 0:00:47]} Rxf2 {[%emt 0:00:30]} 43. Rg4 {[%emt 0:00:01]} g5 {[%emt 0:00:30]} 44. Kd4 {[%emt 0:00:57]} Rc2 {[%emt 0:00:30]} 45. Kd5 {[%emt 0:00:36]} Rc3 {[%emt 0:00:30]} 46. Rd4 {[%emt 0:00:28]} Rc2 {[%emt 0:01:30]} 47. Rg4 {[%emt 0:00:07]} Rc3 {[%emt 0:00:00]} 48. Rd4 {[%emt 0:00:49]} Rc2 {[%emt 0:00:00]} 49. Rg4 {[%emt 0:00:26]} Rc3 {[%emt 0:00:30]} 50. Rd4 {[%emt 0:00:37]} 1/2-1/2

[Event "Turkish Youth Championship 2024"]
[Site "Samsun"]
[Date "2024.05.21"]
[Round "5"]
[White "Tirpan, Ceren"]
[Black "Bilgin, Ali Tugrul"]
[Result "1-0"]
[ECO "A36"]
[WhiteElo "2004"]
[BlackElo "1678"]
[Annotator "RC"]
[PlyCount "55"]
[EventDate "2024.05.18"]
[EventType "swiss"]
[EventCountry "TUR"]
[SourceTitle "playchess.com"]
[Source "ChessBase"]
[SourceQuality "1"]
[TimeControl "5400+30"]

1. c4 {[%emt 0:01:00]} c5 {[%emt 0:01:00]} 2. Nc3 {[%emt 0:00:30]} Nc6 {[%emt 0:00:30]} 3. g3 {[%emt 0:00:00]} g6 {[%emt 0:00:00]} 4. Bg2 {[%emt 0:00:00]} Bg7 {[%emt 0:00:00]} 5. d3 {[%emt 0:00:00]} d6 {[%emt 0:01:30]} 6. e3 {[%emt 0:03:00]} e5 {[%emt 0:01:30]} 7. Nge2 {[%emt 0:01:30]} Nge7 {[%emt 0:00:00]} 8. O-O {[%emt 0:07:30]} O-O {[%emt 0:01:00]} 9. Nd5 {[%emt 0:06:30]} Rb8 {[%emt 0:06:30]} 10. Nec3 {[%emt 0:05:30]} a6 {[%emt 0:05:30]} 11. Rb1 {[%emt 0:12:30]} b5 {[%emt 0:06:30]} 12. Nxe7+ {[%emt 0:08:30]} Nxe7 {[%emt 0:00:00]} 13. cxb5 {[%emt 0:00:30]} axb5 {[%emt 0:00:00]} 14. b4 {[%emt 0:00:00]} cxb4 {[%emt 0:05:30]} 15. Rxb4 {[%emt 0:00:00]} Qa5 {[%emt 0:03:30]} 16. Qb3 {[%emt 0:11:30]} Bd7 {[%emt 0:01:30]} 17. Bd2 {[%emt 0:07:30]} Nc8 {[%emt 0:38:30]} 18. Rb1 {[%emt 0:04:30]} Na7 {[%emt 0:00:00]} 19. Qd1 {[%emt 0:00:30]} Qa3 {[%emt 0:09:51]} 20. Ne4 {[%emt 0:10:19]} Be6 {[%emt 0:09:26]} 21. Bc1 {[%emt 0:04:46]} Qa6 {[%emt 0:04:33]} 22. a4 {[%emt 0:00:28]} Bd7 {[%emt 0:00:03]} 23. Nc3 {[%emt 0:05:36]} Rfc8 {[%emt 0:00:30]} 24. Bd2 {[%emt 0:00:06]} Rc5 {[%emt 0:02:25]} 25. Bf1 {[%emt 0:05:37]} Qb6 {[%emt 0:02:37]} 26. axb5 {[%emt 0:01:41]} Bxb5 {[%emt 0:00:32]} 27. Na4 {[%emt 0:00:25]} Bxa4 {[%emt 0:00:21]} 28. Qxa4 {[%emt 0:00:26]} 1-0

[Event "Turkish Youth Championship 2024"]
[Site "Samsun"]
[Date "2024.05.21"]
[Round "5"]
[White "Zerey, Demhat"]
[Black "Hamurcu, Mehmet"]
[Result "1-0"]
[ECO "A46"]
[WhiteElo "1986"]
[BlackElo "1832"]
[Annotator "RC"]
[PlyCount "51"]
[EventDate "2024.05.18"]
[EventType "swiss"]
[EventCountry "TUR"]
[SourceTitle "playchess.com"]
[Source "ChessBase"]
[SourceQuality "1"]
[TimeControl "5400+30"]

1. d4 {[%emt 0:01:00]} Nf6 {[%emt 0:01:00]} 2. Bf4 {[%emt 0:00:30]} e6 {[%emt 0:00:00]} 3. e3 {[%emt 0:00:00]} c5 {[%emt 0:00:00]} 4. Nf3 {[%emt 0:00:00]} Qb6 {[%emt 0:00:30]} 5. Qc1 {[%emt 0:06:30]} cxd4 {[%emt 0:03:30]} 6. exd4 {[%emt 0:00:30]} Nc6 {[%emt 0:00:30]} 7. c3 {[%emt 0:01:30]} d5 {[%emt 0:00:30]} 8. Bd3 {[%emt 0:03:30]} Bd7 {[%emt 0:00:30]} 9. O-O {[%emt 0:04:30]} Nh5 {[%emt 0:01:30]} 10. Be3 {[%emt 0:02:30]} Rc8 {[%emt 0:04:30]} 11. Nbd2 {[%emt 0:04:30]} a5 {[%emt 0:03:30]} 12. Ne5 {[%emt 0:03:30]} Nxe5 {[%emt 0:04:30]} 13. dxe5 {[%emt 0:00:30]} Bc5 {[%emt 0:00:30]} 14. Bxc5 {[%emt 0:00:30]} Qxc5 {[%emt 0:01:30]} 15. Nb3 {[%emt 0:02:30]} Qe7 {[%emt 0:15:30]} 16. g4 {[%emt 0:03:30]} Qh4 {[%emt 0:01:30]} 17. f3 {[%emt 0:02:30]} g6 {[%emt 0:07:30]} 18. gxh5 {[%emt 0:00:30]} gxh5 {[%emt 0:00:00]} 19. Nd4 {[%emt 0:02:30]} Ke7 {[%emt 0:02:00]} 20. Kh1 {[%emt 0:01:30]} Rcg8 {[%emt 0:03:30]} 21. Qe3 {[%emt 0:01:30]} Rg3 {[%emt 0:03:30]} 22. Rg1 {[%emt 0:01:30]} Rhg8 {[%emt 0:11:30]} 23. Rxg3 {[%emt 0:00:30]} Rxg3 {[%emt 0:00:30]} 24. Qf2 {[%emt 0:00:30]} Rg4 {[%emt 0:02:30]} 25. Qxh4+ {[%emt 0:00:00]} Rxh4 {[%emt 0:00:00]} 26. Kg2 {[%emt 0:00:00]} 1-0